fUSD/lending_fUSD_20240706
["ID","MTS","AMOUNT","RATE_DAILY","PERIOD"]
[331360029,1720270090129,-1449.1532891,0.00050737,60]
[331360030,1720270090174,-171.04635668,0.00050778,60]
[331360031,1720270090217,-160.81954301,0.00050794,60]
[331360032,1720270090261,-187.06392327,0.00050807,60]
[331360033,1720270090304,-527.47113887,0.00050814,60]
[331360034,1720270090347,-172.99767655,0.00050873,60]
[331360035,1720270090390,-153.56221919,0.00050905,60]
[331360036,1720270090433,-527.47113887,0.00050939,60]
[331360037,1720270090476,-166.66666666,0.00050953,60]
[331360038,1720270090521,-880.69098624,0.00050953,60]
[331360039,1720270090564,-172.99767655,0.0005097,60]
[331360040,1720270090607,-880.69098624,0.00051018,60]
[331360041,1720270090650,-153.56221919,0.0005122,60]
[331360042,1720270090692,-156.41545066,0.00051243,60]
[331360043,1720270090736,-152.0,0.00051367,60]
[331360044,1720270090782,-279.4478313,0.00051373,60]
[331360045,1720270090829,-170.83396016,0.00051405,60]
[331360046,1720270090872,-151.0,0.00051452,120]
[331360047,1720270090915,-1720.04405545,0.00051479,60]
[331360048,1720270090959,-187.06392327,0.00051554,60]
[331360049,1720270091002,-153.56221919,0.00051587,60]
[331360050,1720270091046,-153.56221919,0.00051596,60]
[331360051,1720270091089,-880.69098624,0.00051618,60]
[331360052,1720270091133,-153.07323674,0.00051626,60]
[331360053,1720270091176,-153.56221919,0.00051636,60]
[331360054,1720270091219,-279.4478313,0.00051708,60]
[331360055,1720270091261,-1449.1532891,0.00051714,60]
[331360056,1720270091302,-154.47100494,0.00051724,60]
[331360057,1720270091343,-279.4478313,0.0005174,60]
[331360058,1720270091387,-1720.04405545,0.00051763,60]
[331360059,1720270091430,-279.4478313,0.00051766,60]
[331360060,1720270091472,-187.06392327,0.00051831,60]
[331360061,1720270091516,-156.54524037,0.00051852,60]
[331360062,1720270091558,-1449.1532891,0.00051857,60]
[331360063,1720270091598,-152.0,0.00051875,60]
[331360064,1720270091638,-166.66666668,0.00051883,60]
[331360065,1720270091683,-155.93157011,0.00051885,60]
[331360066,1720270091725,-798.87,0.00052054,120]
[331360067,1720270091770,-1720.04405545,0.00052128,60]
[331360068,1720270091814,-166.79209794,0.0005221,60]
[331360069,1720270091857,-880.69098624,0.00052274,60]
[331360070,1720270091898,-166.6666667,0.00052329,60]
[331360071,1720270091939,-156.41545075,0.00052342,60]
[331360072,1720270091982,-152.0,0.00052382,90]
[331360073,1720270092027,-1449.1532891,0.00052465,60]
[331360074,1720270092069,-151.0,0.00052493,120]
[331360075,1720270092317,-154.47100494,0.00052532,60]
[331360076,1720270092359,-153.56221919,0.00052558,60]
[331360077,1720270092401,-304.51039075,0.00052581,60]
[331360078,1720270092442,-1449.1532891,0.00052596,60]
[331360079,1720270092484,-1449.1532891,0.00052624,60]
[331360080,1720270092524,-170.83396016,0.00052703,60]
[331360081,1720270092566,-152.0,0.0005289,90]
[331360082,1720270092607,-170.8339602,0.00052976,60]
[331360083,1720270092647,-279.4478313,0.00053053,60]
[331360084,1720270092687,-154.47100494,0.0005317,60]
[331360085,1720270092728,-160.8195431,0.00053176,60]
[331360086,1720270092770,-453.4286315,0.00053284,60]
[331360087,1720270092810,-155.93157011,0.0005338,60]
[331360088,1720270092850,-152.0,0.00053398,90]
[331360089,1720270092888,-156.54524037,0.00053406,60]
[331360090,1720270092929,-798.87,0.00053424,120]
[331360091,1720270092972,-151.0,0.00053534,120]
[331360092,1720270093014,-304.51039087,0.00053554,60]
[331360093,1720270093053,-279.44783133,0.00053669,60]
[331360094,1720270093093,-150.0,0.0005369,30]
[331360095,1720270093135,-187.06392327,0.00053726,60]
[331360096,1720270093175,-1449.15328923,0.00053748,60]
[331360097,1720270093215,-151.00737079,0.00053791,60]
[331360098,1720270093256,-187.06392332,0.0005381,60]
[331360099,1720270093304,-152.0,0.00053906,90]
[331360100,1720270093348,-159.72954392,0.00053911,60]
[331360101,1720270093389,-154.49004464,0.00053994,60]
[331360102,1720270093428,-153.56221919,0.00054021,60]
[331360103,1720270093468,-153.56221919,0.0005413,60]
[331360104,1720270093507,-155.93157011,0.00054148,60]
[331360105,1720270093546,-153.56221945,0.00054149,60]
[331360106,1720270093589,-166.6666667,0.00054176,60]
[331360107,1720270093627,-155.93157011,0.00054177,60]
[331360108,1720270093666,-151.00737079,0.00054189,60]
[331360109,1720270093705,-155.9315702,0.00054216,60]
[331360110,1720270093750,-880.69098624,0.00054246,60]
[331360111,1720270093790,-172.99767656,0.00054323,60]
[331360112,1720270093836,-152.0,0.00054413,90]
[331360113,1720270093876,-150.14639163,0.00054413,60]
[331360114,1720270093919,-151.00737095,0.00054453,60]
[331360115,1720270093960,-151.0,0.00054575,120]
[331360116,1720270094002,-880.69098637,0.00054592,60]
[331360117,1720270094042,-166.6666667,0.00054677,60]
[331360118,1720270094080,-156.54524038,0.00054711,60]
[331360119,1720270094120,-153.07323676,0.00054751,60]
[331360120,1720270094166,-798.87,0.00054794,120]
[331360121,1720270094207,-150.0,0.00054795,120]
[331360122,1720270094245,-150.0,0.00054795,120]
[331360123,1720270094285,-150.0,0.00054795,120]
[331360124,1720270094327,-150.0,0.00054795,120]
[331360125,1720270094366,-271.12766024,0.00054795,120]
[331360126,1720270094405,-150.0,0.00054795,120]
[331360127,1720270094446,-150.0,0.00054795,120]
[331360128,1720270094485,-150.0,0.00054795,120]
[331360129,1720270094525,-150.0,0.00054795,120]
[331360130,1720270094564,-161.09970125,0.00054795,120]
[331360131,1720270094606,-150.0,0.00054795,120]
[331360132,1720270094653,-150.0,0.00054795,120]
[331360133,1720270094702,-150.0,0.00054798,120]
[331360134,1720270094743,-150.0,0.00054799,120]
[331360135,1720270094785,-1000.0,0.000548,120]
[331360136,1720270094824,-150.0,0.00054802,120]
[331360137,1720270094864,-150.0,0.00054804,120]
[331360138,1720270094903,-150.0,0.00054806,120]
[331360139,1720270094944,-150.0,0.00054809,120]
[331360140,1720270094984,-150.0,0.0005481,120]
[331360141,1720270095025,-150.0,0.0005481,120]
[331360142,1720270095064,-150.0,0.00054814,120]
[331360143,1720270095103,-150.0,0.00054814,120]
[331360144,1720270095142,-150.0,0.00054817,120]
[331360145,1720270095181,-150.0,0.00054817,120]
[331360146,1720270095221,-150.0,0.00054819,120]
[331360147,1720270095260,-150.0,0.00054821,120]
[331360148,1720270095299,-150.0,0.00054824,120]
[331360149,1720270095338,-150.0,0.00054825,120]
[331360150,1720270095378,-150.0,0.00054826,120]
[331360151,1720270095416,-150.0,0.00054829,120]
[331360152,1720270095455,-150.0,0.00054829,120]
[331360153,1720270095496,-150.0,0.00054833,120]
[331360154,1720270095537,-150.0,0.00054834,120]
[331360155,1720270095577,-150.0,0.00054836,120]
[331360156,1720270095617,-150.0,0.00054839,120]
[331360157,1720270095656,-150.0,0.0005484,120]
[331360158,1720270095695,-150.0,0.0005484,120]
[331360159,1720270095736,-150.0,0.00054842,120]
[331360160,1720270095780,-150.0,0.00054843,120]
[331360161,1720270095824,-150.0,0.00054844,120]
[331360162,1720270095864,-150.0,0.00054848,120]
[331360163,1720270095906,-150.0,0.00054848,120]
[331360164,1720270095948,-150.0,0.00054852,120]
[331360165,1720270095989,-150.0,0.00054853,120]
[331360166,1720270096031,-150.0,0.00054855,120]
[331360167,1720270096069,-150.0,0.00054858,120]
[331360168,1720270096108,-150.0,0.00054858,120]
[331360169,1720270096147,-150.0,0.00054859,120]
[331360170,1720270096187,-150.0,0.00054863,120]
[331360171,1720270096227,-150.0,0.00054863,120]
[331360172,1720270096264,-150.0,0.00054863,120]
[331360173,1720270096303,-150.0,0.00054863,120]
[331360174,1720270096345,-150.0,0.00054867,120]
[331360175,1720270096384,-150.0,0.00054868,120]
[331360176,1720270096422,-150.0,0.00054871,120]
[331360177,1720270096460,-150.0,0.00054873,120]
[331360178,1720270096499,-150.0,0.00054874,120]
[331360179,1720270096698,-150.0,0.00054874,120]
[331360180,1720270096739,-150.0,0.00054878,120]
[331360181,1720270096782,-150.0,0.00054878,120]
[331360182,1720270097796,-150.0,0.00054882,120]
[331360183,1720270097840,-150.0,0.00054883,120]
[331360184,1720270097882,-150.0,0.00054886,120]
[331360185,1720270097923,-150.0,0.00054886,120]
[331360186,1720270097966,-150.0,0.00054887,120]
[331360187,1720270098009,-150.0,0.00054889,120]
[331360188,1720270098049,-150.0,0.0005489,120]
[331360189,1720270098091,-150.0,0.00054892,120]
[331360190,1720270098136,-150.0,0.00054893,120]
[331360191,1720270098179,-150.0,0.00054897,120]
[331360192,1720270098220,-150.0,0.00054897,120]
[331360193,1720270098261,-150.0,0.00054897,120]
[331360194,1720270098301,-150.0,0.00054897,120]
[331360195,1720270098342,-150.0,0.00054897,120]
[331360196,1720270098382,-150.0,0.00054901,120]
[331360197,1720270098421,-150.0,0.00054902,120]
[331360198,1720270098461,-150.0,0.00054905,120]
[331360199,1720270098505,-150.0,0.00054905,120]
[331360200,1720270098545,-150.0,0.00054907,120]
[331360201,1720270098589,-150.0,0.00054909,120]
[331360202,1720270098628,-150.0,0.00054909,120]
[331360203,1720270098667,-150.0,0.00054912,120]
[331360204,1720270098708,-150.0,0.00054912,120]
[331360205,1720270098752,-150.0,0.00054916,120]
[331360206,1720270098795,-150.0,0.00054917,120]
[331360207,1720270098834,-150.0,0.0005492,120]
[331360208,1720270098878,-150.0,0.00054921,120]
[331360209,1720270098917,-152.0,0.00054921,120]
[331360210,1720270098958,-150.0,0.00054922,120]
[331360211,1720270099001,-150.0,0.00054924,120]
[331360212,1720270099041,-150.0,0.00054927,120]
[331360213,1720270099080,-150.0,0.00054928,120]
[331360214,1720270099121,-190.9572421,0.00054932,120]
[331360215,1720270099167,-150.0,0.00054932,120]
[331360216,1720270099208,-150.0,0.00054932,120]
[331360217,1720270099251,-150.0,0.00054932,120]
[331360218,1720270099292,-150.0,0.00054932,120]
[331360219,1720270099333,-190.9572421,0.00054934,120]
[331360220,1720270099374,-150.0,0.00054935,120]
[331360221,1720270099416,-190.9572421,0.00054936,120]
[331360222,1720270099456,-150.0,0.00054936,120]
[331360223,1720270099498,-150.0,0.00054937,120]
[331360224,1720270099540,-190.9572421,0.00054938,120]
[331360225,1720270099581,-150.0,0.00054939,120]
[331360226,1720270099622,-190.9572421,0.0005494,120]
[331360227,1720270099663,-150.0,0.00054941,120]
[331360228,1720270099706,-190.9572421,0.00054942,120]
[331360229,1720270099753,-150.0,0.00054943,120]
[331360230,1720270099793,-190.9572421,0.00054944,120]
[331360231,1720270099833,-190.9572421,0.00054946,120]
[331360232,1720270099874,-150.0,0.00054946,120]
[331360233,1720270099916,-150.0,0.00054947,120]
[331360234,1720270099958,-190.9572421,0.00054948,120]
[331360235,1720270100000,-190.9572421,0.0005495,120]
[331360236,1720270100042,-150.0,0.00054951,120]
[331360237,1720270100081,-150.0,0.00054951,120]
[331360238,1720270100121,-190.9572421,0.00054952,120]
[331360239,1720270100166,-150.0,0.00054953,120]
[331360240,1720270100207,-190.9572421,0.00054954,120]
[331360241,1720270100247,-150.0,0.00054954,120]
[331360242,1720270100287,-150.0,0.00054954,120]
[331360243,1720270100326,-150.0,0.00054956,120]
[331360244,1720270100366,-190.9572421,0.00054956,120]
[331360245,1720270100407,-150.0,0.00054958,120]
[331360246,1720270100449,-190.9572421,0.00054958,120]
[331360247,1720270100489,-190.9572421,0.00054961,120]
[331360248,1720270100529,-150.0,0.00054961,120]
[331360249,1720270100568,-150.0,0.00054962,120]
[331360250,1720270100609,-190.9572421,0.00054963,120]
[331360251,1720270100648,-190.9572421,0.00054965,120]
[331360252,1720270100687,-150.0,0.00054966,120]
[331360253,1720270100726,-150.0,0.00054966,120]
[331360254,1720270100765,-190.9572421,0.00054967,120]
[331360255,1720270100803,-150.0,0.00054968,120]
[331360256,1720270100842,-190.9572421,0.00054969,120]
[331360257,1720270100884,-150.0,0.0005497,120]
[331360258,1720270100925,-150.0,0.00054971,120]
[331360259,1720270100968,-190.9572421,0.00054971,120]
[331360260,1720270101008,-190.9572421,0.00054973,120]
[331360261,1720270101047,-150.0,0.00054973,120]
[331360262,1720270101087,-190.9572421,0.00054975,120]
[331360263,1720270101130,-150.0,0.00054976,120]
[331360264,1720270101171,-190.9572421,0.00054977,120]
[331360265,1720270101212,-150.0,0.00054977,120]
[331360266,1720270101255,-150.0,0.00054977,120]
[331360267,1720270101296,-190.9572421,0.00054979,120]
[331360268,1720270101338,-150.0,0.0005498,120]
[331360269,1720270101377,-150.0,0.00054981,120]
[331360270,1720270101417,-190.9572421,0.00054981,120]
[331360271,1720270101455,-190.9572421,0.00054983,120]
[331360272,1720270101492,-150.0,0.00054984,120]
[331360273,1720270101533,-150.0,0.00054985,120]
[331360274,1720270101573,-150.0,0.00054985,120]
[331360275,1720270101612,-190.9572421,0.00054985,120]
[331360276,1720270101652,-190.9572421,0.00054988,120]
[331360277,1720270101694,-150.0,0.00054989,120]
[331360278,1720270101738,-190.9572421,0.0005499,120]
[331360279,1720270102240,-150.0,0.0005499,120]
[331360280,1720270102282,-190.9572421,0.00054992,120]
[331360281,1720270102322,-150.0,0.00054992,120]
[331360282,1720270102363,-190.9572421,0.00054994,120]
[331360283,1720270102401,-150.0,0.00054995,120]
[331360284,1720270102585,-190.9572421,0.00054996,120]
[331360285,1720270102625,-150.0,0.00054996,120]
[331360286,1720270102666,-190.9572421,0.00054998,120]
[331360287,1720270102707,-190.9572421,0.00055,120]
[331360288,1720270102748,-42359.0,0.00055,120]
[331360289,1720270102793,-251.33647398,0.00055,120]
[331360290,1720270102833,-173.00703474,0.00055,120]
[331360291,1720270102874,-165.020421,0.00055,120]
[331360292,1720270102915,-280.72742856,0.00055,120]
[331360293,1720270102957,-184.17973533,0.00055,120]
[331360294,1720270102998,-207.68450603,0.00055,120]
[331360295,1720270103043,-180.59946907,0.00055,120]
[331360296,1720270103084,-165.94380465,0.00055,120]
[331360297,1720270103127,-153.9379639,0.00055,120]
[331360298,1720270103174,-150.68874222,0.00055,120]
[331360299,1720270103216,-152.0,0.00055429,120]
[331360300,1720270103261,-930.98,0.00055616,120]
[331360301,1720270103302,-151.0,0.00055616,120]
[331360302,1720270103344,-152.0,0.00055937,120]
[331360303,1720270103386,-151.0,0.00056,120]
[331360304,1720270103427,-798.96160803,0.00056164,120]
[331360305,1720270103469,-152.0,0.00056444,120]
[331360306,1720270103592,-151.0,0.00056658,120]
[331360307,1720270103634,-152.0,0.00056952,120]
[331360308,1720270103678,-152.0,0.0005746,120]
[331360309,1720270103722,-151.0,0.00057699,120]
[331360310,1720270103768,-152.0,0.00057968,120]
[331360311,1720270103810,-152.0,0.00058475,120]
[331360312,1720270103853,-151.0,0.0005874,120]
[331360313,1720270103896,-152.0,0.00058983,120]
[331360314,1720270103940,-2000.0,0.00059,30]
[331360315,1720270103984,-2000.0,0.00059,30]
[331360316,1720270104027,-2000.0,0.00059,30]
[331360317,1720270104072,-2000.0,0.00059,30]
[331360318,1720270104115,-2000.0,0.00059,30]
[331360319,1720270104159,-2000.0,0.00059,30]
[331360320,1720270104203,-1270.0785,0.00059,30]
[331360321,1720270104249,-500.0,0.00059476,90]
[331360322,1720270104295,-151.0,0.00059781,120]
[331360323,1720270104339,-151.0,0.0006,120]
[331360324,1720270104381,-161.189559,0.0006,120]
[331360325,1720270104424,-500.0,0.00060024,90]
[331360326,1720270104467,-1383.0,0.00060274,30]
[331360327,1720270104512,-390.55284986,0.000603,120]
[331360328,1720270104556,-500.0,0.00060572,90]
[331360329,1720270104604,-151.0,0.00060822,120]
[331360330,1720270104647,-500.0,0.0006112,90]
[331360331,1720270104689,-210.9416993,0.00061272,120]
[331360332,1720270104731,-500.0,0.00061668,90]
[331360333,1720270104774,-151.0,0.00061863,120]
[331360334,1720270104819,-816.29413739,0.00061918,120]
[331360335,1720270104860,-300.0,0.00062216,90]
[331360336,1720270104902,-203.48926,0.000626,40]
[331360337,1720270104945,-151.0,0.00062904,120]
[331360338,1720270104987,-151.0,0.00063945,120]
[331360339,1720270105032,-200.0,0.000646,40]
[331360340,1720270105072,-151.0,0.00064986,120]
[331360341,1720270105111,-150.0,0.0006558,120]
[331360342,1720270105156,-900.0,0.00066,120]
[331360343,1720270105202,-151.0,0.00066027,120]
[331360344,1720270105245,-583.53124526,0.00066202,120]
[331360345,1720270105287,-230.03895669,0.00066205,120]
[331360346,1720270105329,-1397.47913103,0.00066205,120]
[331360347,1720270105371,-1397.47913103,0.00066205,120]
[331360348,1720270105411,-230.03895669,0.00066208,120]
[331360349,1720270105451,-583.53124526,0.00066208,120]
[331360350,1720270105492,-230.03895669,0.00066213,120]
[331360351,1720270105536,-583.53124526,0.00066213,120]
[331360352,1720270105578,-1397.47913103,0.00066214,120]
[331360353,1720270105620,-583.53124526,0.00066223,120]
[331360354,1720270105663,-1397.47913103,0.00066223,120]
[331360355,1720270105704,-583.53124526,0.00066224,120]
[331360356,1720270107551,-1612.28890428,0.00066225,120]
[331360357,1720270107594,-583.53124526,0.00066225,120]
[331360358,1720270107638,-1612.28890428,0.00066229,120]
[331360359,1720270107677,-230.03895669,0.00066232,120]
[331360360,1720270107716,-230.03895669,0.00066232,120]
[331360361,1720270107763,-1397.47913103,0.00066235,120]
[331360362,1720270107804,-271.21010504,0.00066236,120]
[331360363,1720270107844,-271.21010504,0.00066237,120]
[331360364,1720270107883,-230.03895669,0.00066237,120]
[331360365,1720270107922,-230.03895669,0.00066238,120]
[331360366,1720270107961,-271.21010504,0.00066241,120]
[331360367,1720270108000,-271.21010504,0.00066241,120]
[331360368,1720270108043,-230.03895669,0.00066243,120]
[331360369,1720270108083,-583.53124526,0.00066249,120]
[331360370,1720270108123,-1612.28890428,0.00066249,120]
[331360371,1720270108166,-230.03895669,0.0006625,120]
[331360372,1720270108206,-1612.28890428,0.00066251,120]
[331360373,1720270108246,-1612.28890428,0.00066251,120]
[331360374,1720270108288,-1612.28890428,0.00066254,120]
[331360375,1720270108327,-271.21010504,0.00066255,120]
[331360376,1720270108365,-1397.47913103,0.00066255,120]
[331360377,1720270108402,-271.21010504,0.00066256,120]
[331360378,1720270108440,-583.53124526,0.00066257,120]
[331360379,1720270108478,-271.21010504,0.00066258,120]
[331360380,1720270108517,-271.21010504,0.00066258,120]
[331360381,1720270108556,-1612.28890428,0.00066258,120]
[331360382,1720270108597,-1612.28890428,0.00066258,120]
[331360383,1720270109637,-271.21010504,0.00066262,120]
[331360384,1720270111946,-583.53124526,0.00066264,120]
[331360385,1720270113688,-1612.28890428,0.00066265,120]
[331360386,1720270115698,-5675500.88076858,0.000666,30]
[331360387,1720270121177,381.42050941,0.0003,30]
[331360388,1720270121379,500.0,0.00030136,30]
[331360389,1720270121471,500.0,0.00030136,30]
[331360390,1720270121669,500.0,0.00030136,30]
[331360391,1720270121791,508.67904131,0.00030136,30]
[331360392,1720270133875,-151.0,0.0004,120]
[331360393,1720270133916,-168.0,0.0004,120]
[331360394,1720270133958,-950.9,0.000427,30]
[331360395,1720270134002,-785.07457129,0.00043098,30]
[331360396,1720270134045,-397.33458425,0.00043344,30]
[331360397,1720270134087,-397.33458425,0.00043356,30]
[331360398,1720270134133,-785.07457129,0.00046091,30]
[331360399,1720270134182,-785.07457129,0.00047256,30]
[331360400,1720270135492,-785.07457129,0.00047268,30]
[331360401,1720270138417,-785.07457129,0.00047856,30]
[331360402,1720270140410,-486.98114114,0.00048022,30]
[331360403,1720270142462,-486.98114114,0.00048712,30]
[331360404,1720270144005,-397.33458425,0.00048765,30]
[331360405,1720270144478,-3316.61,0.00049315,120]
[331360406,1720270144524,-3316.61,0.00049315,120]
[331360407,1720270144574,-3316.61,0.00049315,120]
[331360408,1720270144623,-3316.61,0.00049315,120]
[331360409,1720270144671,-3316.61,0.00049315,120]
[331360410,1720270144719,-3316.61,0.00049315,120]
[331360411,1720270144771,-3316.61,0.00049315,120]
[331360412,1720270144819,-3316.61,0.00049315,120]
[331360413,1720270144870,-3316.61,0.00049315,120]
[331360414,1720270144917,-3316.61,0.00049315,120]
[331360415,1720270144966,-3316.61,0.00049315,120]
[331360416,1720270145014,-3316.61,0.00049315,120]
[331360417,1720270146081,-3316.61,0.00049315,120]
[331360419,1720270148156,-3316.61,0.00049315,120]
[331360421,1720270150095,-3316.61,0.00049315,120]
[331360422,1720270152116,-3316.61,0.00049315,120]
[331360423,1720270154129,-3316.61,0.00049315,120]
[331360424,1720270155160,-3316.61,0.00049315,120]
[331360425,1720270155206,-3316.61,0.00049315,120]
[331360426,1720270155249,-3316.61,0.00049315,120]
[331360427,1720270155290,-3316.61,0.00049315,120]
[331360428,1720270155332,-3316.61,0.00049315,120]
[331360429,1720270155372,-3316.61,0.00049315,120]
[331360430,1720270155417,-3316.78505415,0.00049315,120]
[331360431,1720270155460,-486.98114114,0.00049338,30]
[331360432,1720270155506,-150.4718806,0.00049417,30]
[331360433,1720270155550,-486.98114114,0.00049581,30]
[331360434,1720270155596,-150.4718806,0.00049633,30]
[331360435,1720270155638,-200.0,0.0005,120]
[331360436,1720270155682,-785.07457129,0.0005006,60]
[331360437,1720270155724,-150.4718806,0.00050113,60]
[331360438,1720270155769,-397.33458425,0.00050338,60]
[331360439,1720270155811,-150.4718806,0.00050407,60]
[331360440,1720270155854,-397.33458425,0.00050574,60]
[331360441,1720270156074,-486.98114114,0.00050582,60]
[331360442,1720270156116,-785.07457129,0.00050598,60]
[331360443,1720270156162,-397.33458425,0.0005062,60]
[331360444,1720270156203,-150.4718806,0.00050796,60]
[331360445,1720270156245,-527.47113887,0.00050968,60]
[331360446,1720270156287,-150.4718806,0.00051095,60]
[331360447,1720270157234,-527.47113887,0.00051105,60]
[331360448,1720270157276,-486.98114114,0.00051111,60]
[331360449,1720270157319,-397.33458425,0.00051891,60]
[331360450,1720270157363,-486.98114114,0.00051905,60]
[331360451,1720270157406,-527.47113887,0.00052229,60]
[331360452,1720270159315,-151.89808431,0.00052232,60]
[331360453,1720270159358,-486.98114114,0.00052278,60]
[331360454,1720270159402,-151.0,0.00052493,120]
[331360455,1720270159446,-397.33458425,0.00052636,60]
[331360456,1720270159487,-527.47113887,0.00052682,60]
[331360457,1720270159529,-151.89808431,0.0005269,60]
[331360458,1720270159571,-486.98114123,0.00052844,60]
[331360459,1720270159613,-397.33458425,0.0005292,60]
[331360460,1720270159655,-397.33458425,0.00053041,60]
[331360461,1720270159699,-1720.04405545,0.00053497,60]
[331360462,1720270160334,-151.89808444,0.00053507,60]
[331360463,1720270160377,-150.4718806,0.00053664,60]
[331360464,1720270160419,-150.0,0.0005369,30]
[331360465,1720270160463,-397.33458425,0.00053697,60]
[331360466,1720270160507,-397.33458425,0.00053726,60]
[331360467,1720270160556,-453.42863175,0.00053878,60]
[331360468,1720270161183,-785.07457129,0.00053889,60]
[331360469,1720270161231,-397.3345845,0.00054287,60]
[331360470,1720270161276,-527.47113904,0.00054368,60]
[331360471,1720270161321,-785.07457137,0.00054413,60]
[331360472,1720270161364,-150.4718806,0.00054616,60]
[331360473,1720270161410,-1720.04405554,0.00054712,60]
[331360474,1720270161453,-150.47188085,0.00054723,60]
[331360475,1720270161499,-3095.01,0.00054794,120]
[331360476,1720270161544,-1174.44638639,0.00055,60]
[331360477,1720270161592,-3095.01,0.00055068,120]
[331360478,1720270161639,-3095.01,0.00055342,120]
[331360479,1720270161686,-3095.01,0.00055616,120]
[331360480,1720270161731,-3095.01,0.0005589,120]
[331360481,1720270161784,-3095.01,0.00056164,120]
[331360482,1720270161834,-3095.01,0.00056438,120]
[331360483,1720270161880,-3095.01,0.00056712,120]
[331360484,1720270161926,-3095.01,0.00056986,120]
[331360485,1720270161973,-3095.01,0.0005726,120]
[331360486,1720270162017,-3095.01,0.00057534,120]
[331360487,1720270162062,-3095.01,0.00057808,120]
[331360488,1720270162105,-645.15545013,0.00058,120]
[331360489,1720270162152,-172.0,0.00058,120]
[331360490,1720270162198,-3095.01,0.00058082,120]
[331360491,1720270162243,-3095.01,0.00058356,120]
[331360492,1720270162286,-3095.01,0.0005863,120]
[331360493,1720270162331,-3095.01,0.00058904,120]
[331360494,1720270162375,-3095.01,0.00059178,120]
[331360495,1720270162419,-3095.01,0.00059452,120]
[331360496,1720270162463,-3095.01,0.00059726,120]
[331360497,1720270162505,-3095.01,0.00059999,120]
[331360498,1720270162547,-192.84617938,0.0006,120]
[331360499,1720270162592,-3095.01,0.00060273,120]
[331360500,1720270162636,-3095.01,0.00060547,120]
[331360501,1720270162680,-3095.01,0.00060821,120]
[331360502,1720270162722,-3095.20739696,0.00061095,120]
[331360503,1720270162770,-151.0,0.00064986,120]
[331360504,1720270162813,-900.0,0.00066,120]
[331360505,1720270162854,-338.40343781,0.00066202,120]
[331360506,1720270162900,-1397.47913103,0.00066202,120]
[331360507,1720270162943,-292.04719715,0.00066205,120]
[331360508,1720270162986,-338.40343781,0.00066208,120]
[331360509,1720270163028,-338.40343781,0.00066208,120]
[331360510,1720270163071,-1397.47913103,0.00066217,120]
[331360511,1720270163114,-338.40343781,0.00066219,120]
[331360512,1720270163158,-292.04719715,0.00066226,120]
[331360513,1720270163200,-338.40343781,0.00066227,120]
[331360514,1720270163242,-292.04719715,0.00066228,120]
[331360515,1720270163283,-338.40343781,0.0006623,120]
[331360516,1720270163325,-292.04719715,0.00066231,120]
[331360517,1720270163367,-292.04719715,0.00066235,120]
[331360518,1720270163408,-292.04719715,0.00066236,120]
[331360519,1720270163450,-338.40343781,0.00066238,120]
[331360520,1720270163492,-1397.47913103,0.00066242,120]
[331360521,1720270163535,-292.04719715,0.00066243,120]
[331360522,1720270163577,-292.04719715,0.00066253,120]
[331360523,1720270163620,-292.04719715,0.00066255,120]
[331360524,1720270163662,-338.40343781,0.00066259,120]
[331360525,1720270163705,-338.40343781,0.00066265,120]
[331360526,1720270163752,-180449.62639974,0.000665,120]
[331360527,1720270163796,-400.0,0.0006657,90]
[331360528,1720270163840,-5625443.61540201,0.000666,30]
[331360529,1720270189464,-278.7,0.0004438,120]
[331360530,1720270189507,-159.18821854,0.0004438,120]